bitfinex-derivatives/quotes_ETHF0:USTF0_20241129
["timestamp","ask_amount","ask_price","bid_price","bid_amount"]
[1732839083865,0.27991,3572.1,3571.6,3.8504]
[1732839084073,3.2078,3572.3,3571.7,0.24249144]
[1732839084266,3.2078,3572.3,3571.8,0.24249144]
[1732839084267,0.27991,3572.0,3571.8,0.24249144]
[1732839084466,0.27991,3572.0,3571.9,0.24249144]
[1732839084770,3.2078,3572.3,3571.9,0.24249144]
[1732839084966,3.2078,3572.3,3571.7,0.27993]
[1732839085166,0.2799,3572.2,3571.8,0.24257399]
[1732839085368,0.2799,3572.2,3571.9,0.24257399]
[1732839085565,0.2799,3572.2,3572.0,0.24257399]
[1732839085768,0.2799,3572.2,3571.7,0.27993]
[1732839085971,0.2799,3572.2,3571.8,0.52259999]
[1732839086271,3.2078,3572.3,3571.9,0.24279122]
[1732839086479,3.2078,3572.3,3572.0,0.24279122]
[1732839086669,3.2078,3572.3,3572.1,0.15173445]
[1732839086870,3.48769,3572.3,3572.2,0.15173445]
[1732839088573,3.48769,3572.3,3572.2,0.39485586]
[1732839089578,3.2078,3572.3,3571.8,0.27992]
[1732839089778,0.2799,3572.2,3571.9,0.39540959]
[1732839089971,0.2799,3572.2,3572.0,0.39540959]
[1732839090170,0.2799,3572.2,3572.1,0.39540959]
[1732839091372,0.6998,3571.9,3570.0,4.37445825]
[1732839091567,0.6998,3571.9,3569.3,3.2078]
[1732839091568,2.70973988,3570.2,3569.3,3.2078]
[1732839091872,3.2078,3570.4,3569.4,0.35023433]
[1732839092072,3.2078,3570.4,3569.7,3.2078]
[1732839092470,2.70973988,3570.7,3569.8,0.35023433]
[1732839092674,2.70973988,3570.2,3569.8,0.35023433]
[1732839092879,3.2078,3570.8,3569.9,0.35023433]
[1732839093075,2.70973988,3570.7,3570.0,0.35023433]
[1732839093273,0.28002,3570.6,3569.7,3.2078]
[1732839093467,0.28003,3570.5,3570.1,0.35021815]
[1732839093777,0.28003,3570.5,3569.9,0.28007]
[1732839093974,2.70973988,3570.7,3569.9,0.28007]
[1732839094169,3.2078,3570.6,3569.4,44.0078]
[1732839094372,0.28005,3570.3,3569.7,0.28008]
[1732839094576,0.28005,3570.3,3569.8,0.35006531]
[1732839094875,3.2078,3570.2,3570.0,0.28006]
[1732839095272,3.2078,3570.2,3569.4,44.0078]
[1732839095470,3.2078,3570.2,3569.4,49.0078]
[1732839095666,3.2078,3570.2,3569.9,0.28007]
[1732839095866,3.2078,3570.2,3569.5,0.98036]
[1732839096072,3.2078,3570.2,3569.5,0.2801]
[1732839096271,3.2078,3570.2,3569.8,0.28007]
[1732839096574,3.2078,3570.2,3569.6,3.8426]
[1732839096773,3.2078,3570.2,3569.9,0.28007]
[1732839097078,3.2078,3570.2,3569.6,3.8426]
[1732839097679,3.2078,3570.2,3569.6,4.19246875]
[1732839097972,3.2078,3570.2,3570.0,0.28006]
[1732839098379,3.2078,3570.2,3569.7,0.34982887]
[1732839098380,3.2078,3570.2,3570.1,0.28006]
[1732839099378,3.2078,3570.2,3570.1,3.08086]
[1732839099576,3.2078,3570.7,3570.6,0.28002]
[1732839099876,3.2078,3570.7,3570.5,0.28002]
[1732839099877,3.48781,3570.7,3570.5,0.28002]
[1732839100377,3.90784,3570.7,3570.0,0.28006]
[1732839100679,3.90784,3570.7,3569.6,3.8426]
[1732839100680,2.99310175,3570.4,3570.2,0.28005]
[1732839101086,3.2078,3570.7,3570.1,0.17074773]
[1732839101271,2.71306175,3570.8,3570.3,0.17074773]
[1732839101476,2.71306175,3570.8,3570.7,0.28001]
[1732839101679,3.2078,3571.1,3571.0,0.27999]
[1732839101978,3.48778,3571.1,3571.0,0.24535439]
[1732839102176,3.48778,3571.1,3571.0,0.52534439]
[1732839102378,3.48778,3571.1,3571.0,0.41610212]
[1732839102574,3.2078,3571.1,3571.0,0.41610212]
[1732839102777,0.28002,3570.6,3570.4,0.28003]
[1732839102975,3.2078,3570.5,3570.1,3.7299]
[1732839103177,2.99311175,3570.2,3570.1,3.7299]
[1732839103580,2.99311175,3570.2,3570.1,3.04242087]
[1732839103979,2.71306175,3570.2,3570.1,3.04242087]
[1732839104479,2.99311175,3570.2,3570.1,3.04242087]
[1732839104678,2.71306175,3570.2,3570.1,3.04122475]
[1732839104877,2.71306175,3570.2,3570.1,3.32128475]
[1732839105680,3.48783,3570.5,3570.3,0.28004]
[1732839105880,3.48783,3570.5,3570.4,0.1522736]
[1732839106487,0.70009,3570.4,3569.1,3.2078]
[1732839106782,3.2078,3569.9,3569.4,2.5499]
[1732839106979,3.2078,3569.9,3569.8,0.28008]
[1732839107183,0.28008,3569.8,3569.6,0.2801]
[1732839107492,3.48788,3569.9,3569.7,0.63006939]
[1732839107880,3.48788,3569.9,3569.7,0.28009]
[1732839108080,3.2078,3569.9,3569.4,2.5499]
[1732839108281,3.2078,3569.9,3569.6,0.28009]
[1732839108576,0.28006,3570.1,3570.0,0.28006]
[1732839108781,2.71306175,3570.2,3570.0,0.17089381]
[1732839108976,2.99311175,3570.2,3570.0,0.17089381]
[1732839109180,0.28006,3570.1,3570.0,0.17089381]
[1732839110287,2.71306175,3570.2,3570.0,0.17089381]
[1732839110482,0.28006,3570.1,3570.0,0.17089381]
[1732839111080,0.28007,3570.0,3569.9,0.17089381]
[1732839111282,0.28007,3570.0,3569.2,1.50602]
[1732839111283,0.2801,3569.6,3569.2,1.50602]
[1732839111486,0.2801,3569.6,3569.2,1.2259]
[1732839111487,3.2078,3569.5,3569.2,1.2259]
[1732839111692,3.48791,3569.5,3569.2,1.2259]
[1732839111896,3.48791,3569.5,3569.2,1.50603]
[1732839112188,3.48791,3569.5,3568.8,0.01022398]
[1732839112189,0.28015,3568.9,3568.8,0.01022398]
[1732839112387,3.2078,3568.9,3568.8,0.29038398]
[1732839112586,3.2078,3569.4,3568.8,3.09278398]
[1732839112791,3.2078,3569.4,3568.9,1.2375]
[1732839112985,3.2078,3569.4,3569.2,0.28013]
[1732839113181,3.2078,3569.4,3569.3,0.5188163]
[1732839113593,2.71306175,3569.8,3569.3,3.0402963]
[1732839113791,2.71306175,3569.8,3569.3,0.2386963]
[1732839114093,0.28009,3569.7,3569.4,0.5188063]
[1732839114292,2.99314175,3569.8,3569.5,0.5187963]
[1732839114490,0.28009,3569.7,3569.6,0.2386963]
[1732839115590,2.99315175,3569.8,3569.6,0.2386963]
[1732839115799,2.71306175,3569.8,3569.7,0.2386963]
[1732839115998,2.99314175,3569.8,3569.7,0.2386963]
[1732839116293,2.71306175,3569.8,3569.7,0.2386963]
[1732839117200,2.71306175,3569.8,3569.7,3.3203863]
[1732839117394,2.71306175,3569.8,3569.7,0.5187863]
[1732839117787,2.71306175,3569.8,3569.7,0.51896616]
[1732839118194,2.14359269,3569.8,3569.7,0.51896616]
[1732839118397,2.14359269,3569.8,3569.7,0.66833275]
[1732839118895,1.40046,3569.7,3568.0,0.70055]
[1732839119095,1.40046,3569.7,3567.8,4.1892]
[1732839119096,5.63154269,3568.9,3567.8,4.1892]
[1732839119292,5.63154269,3568.9,3568.3,0.28019]
[1732839119495,2.14359269,3568.9,3568.8,3.09278398]
[1732839119695,2.14359269,3569.3,3569.2,0.28012]
[1732839119900,2.14359269,3569.3,3569.2,0.63044296]
[1732839120097,2.14359269,3569.3,3569.2,3.43204296]
[1732839120701,2.14359269,3569.3,3569.2,3.08172]
[1732839120898,2.14359269,3569.3,3569.2,3.43203018]
[1732839121298,2.14359269,3569.3,3569.2,3.15191018]
[1732839121497,2.14359269,3569.3,3569.2,3.43204018]
[1732839121693,2.14359269,3569.3,3569.2,3.15191018]
[1732839121894,2.42371269,3569.3,3569.2,3.15191018]
[1732839122693,2.14359269,3569.3,3569.2,3.43204018]
[1732839123305,2.42371269,3569.3,3569.2,3.43204018]
[1732839123498,2.42371269,3569.3,3569.2,3.1519296]
[1732839123693,2.42371269,3569.3,3569.2,0.3503296]
[1732839124707,0.28015,3568.9,3568.8,0.01022398]
[1732839124899,0.28015,3568.9,3568.8,0.36060007]
[1732839125600,2.42371269,3569.3,3569.1,0.28013]
[1732839125800,2.14359269,3569.3,3569.2,0.63050609]
[1732839126104,0.28009,3569.7,3569.2,0.35037609]
[1732839126304,3.2078,3570.2,3570.1,0.28006]
[1732839126804,3.2078,3570.2,3570.1,0.63031707]
[1732839127099,2.14359269,3570.3,3570.1,0.35025707]
[1732839127306,2.14359269,3570.3,3570.2,1.90970707]
[1732839127501,2.14359269,3570.3,3570.2,0.35025707]
[1732839127706,2.42363269,3570.3,3570.2,0.35025707]
[1732839128099,2.14359269,3570.3,3570.2,0.35025707]
[1732839128404,2.71311641,3570.3,3570.2,0.63029707]
[1732839128809,2.71311641,3570.3,3570.2,0.86205786]
[1732839129000,2.71311641,3570.7,3570.2,3.38281786]
[1732839129197,2.71311641,3570.7,3570.3,1.91901786]
[1732839129501,2.71311641,3570.7,3570.6,0.28002]
[1732839129700,2.71311641,3571.1,3570.6,0.58201786]
[1732839129901,0.27999,3571.0,3570.9,0.27999]
[1732839130101,2.99309641,3571.1,3570.9,0.86200786]
[1732839130303,2.99309641,3571.1,3571.0,0.23168696]
[1732839130601,2.71311641,3571.1,3571.0,3.31167696]
[1732839130803,2.99303641,3571.9,3571.6,0.27993]
[1732839131004,2.99303641,3571.9,3571.7,1.3689]
[1732839131005,2.71311641,3571.9,3571.7,1.3689]
[1732839131202,2.71311641,3571.9,3571.7,1.74535081]
[1732839131402,2.99303641,3571.9,3571.8,0.37645081]
[1732839132702,2.71311641,3571.9,3571.8,0.37645081]
[1732839133204,2.71311641,3571.9,3571.8,0.37596511]
[1732839133710,2.71311641,3571.9,3571.8,0.14459166]
[1732839135998,2.71311641,3571.9,3571.8,0.38738062]
[1732839136511,2.71311641,3571.9,3571.8,0.67426762]
[1732839136713,2.71311641,3571.9,3571.8,0.39434762]
[1732839137209,2.71311641,3571.9,3571.8,0.15166135]
[1732839139007,3.2078,3572.5,3571.8,2.95166135]
[1732839139314,3.2078,3572.5,3572.4,0.27988]
[1732839139609,2.71311641,3573.1,3572.4,0.39381539]
[1732839139610,0.27986,3572.7,3572.4,0.39381539]
[1732839139806,3.48764,3572.9,3572.5,0.43135589]
[1732839140007,0.27985,3572.8,3572.6,0.15148589]
[1732839140209,3.2078,3572.9,3572.1,1.3369]
[1732839140404,3.2078,3572.9,3572.5,0.27986]
[1732839140607,2.71311641,3573.1,3572.7,0.27985]
[1732839140910,3.2078,3573.3,3572.8,2.73735963]
[1732839141110,3.2078,3573.3,3572.9,0.15135963]
[1732839141310,0.27981,3573.2,3573.0,0.15125594]
[1732839141612,0.27982,3573.2,3572.8,2.86584]
[1732839142408,0.27982,3573.2,3572.1,1.3369]
[1732839142409,0.27986,3572.7,3572.3,0.27988]
[1732839142707,3.2078,3572.4,3572.2,2.586]
[1732839142911,0.27988,3572.3,3571.9,0.27991]
[1732839143105,0.27988,3572.3,3571.5,2.6822]
[1732839143304,3.48768,3572.4,3571.6,0.27994]
[1732839143507,3.48768,3572.4,3571.9,0.27991]
[1732839143707,3.2078,3572.4,3571.7,0.3930694]
[1732839143908,3.48768,3572.4,3572.0,0.2799]
[1732839144213,3.48768,3572.4,3572.1,0.3930694]
[1732839144214,0.27988,3572.3,3572.1,0.3930694]
[1732839144419,2.99299641,3572.3,3572.2,0.15116976]
[1732839144711,0.27991,3572.0,3571.6,0.27994]
[1732839144902,3.2078,3571.9,3571.7,0.39302457]
[1732839145105,3.2078,3571.9,3571.8,0.15115252]
[1732839146114,9.00083641,3571.9,3571.8,0.15115252]
[1732839146612,0.27994,3571.6,3571.2,0.27997]
[1732839146815,0.27994,3571.6,3571.3,0.39319761]
[1732839146816,3.2078,3571.5,3571.3,0.39319761]
[1732839147107,6.20086641,3571.5,3571.4,0.39319761]
[1732839147312,6.20086641,3571.5,3570.4,0.70008]
[1732839147313,0.28001,3570.8,3570.5,0.17021751]
[1732839147511,3.2078,3570.9,3570.6,0.39323903]
[1732839147706,3.2078,3570.9,3570.7,0.39323903]
[1732839147906,3.2078,3570.9,3570.8,0.67324411]
[1732839148406,3.2078,3570.9,3570.8,3.47404411]
[1732839148807,3.2078,3571.4,3570.8,3.19404411]
[1732839149006,3.2078,3571.8,3571.6,0.27994]
[1732839149205,3.2078,3571.8,3571.7,0.431165]
[1732839149419,3.2078,3571.8,3571.7,0.67331418]
[1732839149907,0.27991,3572.0,3571.8,0.27992]
[1732839150108,0.27991,3572.0,3571.9,0.151235]
[1732839150513,0.27996,3571.4,3571.2,0.27997]
[1732839150815,0.27996,3571.4,3571.3,0.39350172]
[1732839151216,0.27995,3571.5,3571.3,0.39350172]
[1732839151406,3.2078,3571.8,3571.4,0.39350172]
[1732839151717,0.27995,3571.6,3571.5,0.39350172]
[1732839153413,0.27994,3571.6,3571.5,0.39350172]
[1732839155019,5.6291883,3571.8,3571.5,0.39350172]
[1732839155215,0.27993,3571.7,3571.6,0.39350172]
[1732839155717,2.8,3571.7,3570.8,0.17021751]
[1732839156020,3.2078,3572.1,3571.0,3.2078]
[1732839156320,0.28007359,3572.4,3571.4,3.37801751]
[1732839156619,0.27989,3572.3,3572.0,0.2799]
[1732839156812,3.2078,3572.3,3572.1,1.2825]
[1732839157010,3.2078,3572.3,3572.2,1.57499]
[1732839157414,3.2078,3572.7,3572.2,4.0943]
[1732839157612,3.2078,3572.7,3572.4,0.27988]
[1732839157613,3.48766,3572.7,3572.4,0.27988]
[1732839157912,3.48766,3572.7,3572.4,0.27987]
[1732839158118,3.2078,3572.7,3572.5,0.27987]
[1732839158524,3.2078,3572.7,3572.6,0.27986]
[1732839159017,3.2078,3572.7,3572.6,3.07906]
[1732839160715,3.2078,3572.7,3572.6,3.14919722]
[1732839161020,3.2078,3572.7,3572.6,3.42905722]
[1732839161225,3.2078,3572.7,3572.6,0.62985722]
[1732839161625,2.1414583,3573.4,3572.6,3.14919722]
[1732839161919,0.2798,3573.4,3573.3,0.17133745]
[1732839162125,3.2078,3573.6,3573.4,0.2798]
[1732839162126,3.48759,3573.6,3573.4,0.2798]
[1732839162419,3.2078,3573.6,3573.5,0.27979]
[1732839162720,3.2078,3573.6,3573.5,0.62978722]
[1732839163216,3.2078,3573.6,3573.5,0.27979]
[1732839163816,3.2078,3573.6,3573.5,0.62970276]
[1732839164113,3.2078,3573.6,3573.5,0.27979]
[1732839164621,0.27976,3573.9,3573.8,0.27977]
[1732839164922,5.3492583,3574.2,3573.8,0.27977]
[1732839165222,5.3492583,3574.2,3573.7,0.45079223]
[1732839165223,0.27976,3573.9,3573.7,0.45079223]
[1732839165418,0.27977,3573.8,3573.7,0.17102223]
[1732839165727,0.27976,3574.0,3573.7,0.41471779]
[1732839165925,0.27976,3574.0,3573.8,0.24369556]
[1732839166224,0.27976,3574.0,3573.9,0.24369556]
[1732839166429,0.27975,3574.0,3573.9,0.24369556]
[1732839166624,5.3492583,3574.2,3573.9,0.24369556]
[1732839166826,0.27975,3574.1,3574.0,0.24366465]
[1732839167426,3.2078,3574.2,3574.0,0.52341465]
[1732839167629,3.2078,3574.2,3574.1,0.24366465]
[1732839167823,3.2078,3574.2,3574.1,1.9790688]
[1732839168128,3.2078,3574.2,3574.1,1.6993288]
[1732839168629,3.48754,3574.2,3574.1,1.6993288]
[1732839168821,3.2078,3574.2,3574.1,1.6993288]
[1732839169619,3.2078,3574.2,3574.1,1.87025178]
[1732839170525,3.2078,3574.2,3574.1,1.6993288]
[1732839170918,3.2078,3574.2,3574.1,4.4969288]
[1732839171117,3.2078,3574.7,3574.4,0.27972]
[1732839171318,3.2078,3574.7,3574.1,4.4969288]
[1732839171319,3.2078,3574.7,3574.2,1.3739]
[1732839171632,0.27969,3574.8,3574.5,1.02545182]
[1732839171828,0.27969,3574.8,3574.5,0.27971]
[1732839172022,0.27969,3574.8,3574.6,0.3959288]
[1732839172223,0.27969,3574.9,3574.6,0.3959288]
[1732839172424,0.27969,3574.9,3574.7,0.3959288]
[1732839172425,0.27968,3574.9,3574.7,0.3959288]
[1732839172618,0.27968,3574.9,3574.8,0.3959288]
[1732839172821,0.55958113,3574.9,3574.8,0.3959288]
[1732839173019,4.72548113,3574.9,3574.8,0.17680784]
[1732839173426,4.44580113,3574.9,3574.2,1.3739]
[1732839173727,4.44580113,3574.9,3574.1,1.3034]
[1732839173728,0.27973,3574.3,3574.1,1.3034]
[1732839173923,3.2078,3574.3,3574.1,1.3034]
[1732839174128,3.48753,3574.3,3574.1,1.3034]
[1732839174425,0.27974,3574.2,3574.1,1.3034]
[1732839175025,0.27977,3573.8,3573.7,1.3879]
[1732839175225,3.2078,3573.8,3573.7,0.34984537]
[1732839175429,0.27978,3573.7,3573.4,1.3879]
[1732839175626,0.27978,3573.7,3573.3,1.2876]
[1732839175627,0.27978,3573.6,3573.5,0.34985257]
[1732839175827,0.27978,3573.7,3573.3,1.2876]
[1732839176028,0.27983,3573.0,3572.9,1.3879]
[1732839176235,3.2078,3573.4,3572.7,0.27985]
[1732839176533,3.2078,3573.4,3572.9,0.34995203]
[1732839176534,0.27983,3573.1,3572.9,0.34995203]
[1732839176731,0.27983,3573.1,3572.8,0.34995203]
[1732839176932,0.27983,3573.1,3572.9,0.34998054]
[1732839177128,0.27983,3573.1,3572.7,0.27985]
[1732839177339,0.27982,3573.2,3572.8,0.62981641]
[1732839177541,0.27982,3573.2,3572.9,0.34997641]
[1732839177742,0.27982,3573.2,3572.8,0.27984]
[1732839177942,0.27983,3573.0,3572.9,0.34997808]
[1732839178143,0.27983,3573.1,3572.9,0.34997808]
[1732839178441,0.27983,3573.1,3572.7,0.27985]
[1732839178642,0.27983,3573.1,3572.8,0.34998143]
[1732839178942,0.27983,3573.0,3572.9,0.34998143]
[1732839179435,3.48763,3573.0,3572.9,0.34998143]
[1732839181043,3.2078,3573.0,3572.9,0.62982143]
[1732839181539,3.2078,3573.4,3573.3,0.2798]
[1732839181740,0.27978,3573.7,3573.4,0.2798]
[1732839181935,0.27978,3573.7,3573.0,1.4011]
[1732839181936,3.2078,3573.8,3573.7,0.27978]
[1732839182138,0.27974,3574.2,3573.5,1.67308143]
[1732839182439,3.2078,3574.3,3573.6,0.34998143]
[1732839182639,0.27976,3573.9,3573.7,0.34989081]
[1732839182838,0.27975,3574.0,3573.8,0.34989081]
[1732839183138,0.27975,3574.0,3573.6,40.8]
[1732839183139,3.2078,3574.3,3573.9,0.58546414]
[1732839183342,3.48753,3574.3,3574.0,0.23557333]
[1732839183640,3.48753,3574.3,3574.1,0.23557333]
[1732839183844,3.2078,3574.3,3574.2,0.23557333]
[1732839184145,3.48753,3574.3,3574.2,0.23557333]
[1732839185143,3.48753,3574.3,3574.2,0.38281118]
[1732839186039,3.48753,3574.3,3573.6,0.27978]
[1732839186040,0.27976,3574.0,3573.6,0.27978]
[1732839186343,3.2078,3573.9,3573.7,0.73278348]
[1732839186543,3.48756,3573.9,3573.8,0.38288948]
[1732839187443,3.48756,3573.9,3572.3,4.37380192]
[1732839187444,13.17034015,3573.9,3572.3,4.37380192]
[1732839187633,3.2078,3573.2,3572.6,1.3054]
[1732839187938,3.2078,3573.2,3572.7,0.27985]
[1732839187939,0.27983,3573.1,3572.7,0.27985]
[1732839188139,3.2078,3573.2,3572.2,3.2078]
[1732839188347,3.2078,3573.2,3572.2,0.27989]
[1732839188348,0.27987,3572.6,3572.2,0.27989]
[1732839188643,3.2078,3572.8,3572.2,0.27989]
[1732839188644,0.27986,3572.7,3572.2,0.27989]
[1732839188844,3.2078,3572.8,3571.7,40.8]
[1732839189145,3.2078,3572.8,3572.5,0.27986]
[1732839189347,3.2078,3572.8,3572.6,0.27986]
[1732839189543,3.2078,3572.8,3572.1,3.8859]
[1732839189843,3.2078,3572.8,3572.5,0.27986]
[1732839190043,3.2078,3572.8,3572.4,0.27987]
[1732839190044,3.48765,3572.8,3572.4,0.27987]
[1732839190547,3.48765,3572.8,3572.5,0.27987]
[1732839190740,3.48765,3572.8,3572.6,0.27986]
[1732839190741,3.2078,3572.8,3572.6,0.27986]
[1732839190943,3.2078,3572.8,3572.5,0.27987]
[1732839191144,0.27986,3572.7,3572.3,0.27988]
[1732839191541,0.27986,3572.6,3572.2,0.27989]
[1732839191736,3.2078,3572.8,3572.3,0.27988]
[1732839192048,3.2078,3572.8,3572.1,3.8859]
[1732839192442,3.2078,3572.8,3572.6,0.27986]
[1732839192643,3.2078,3572.8,3572.5,0.27986]
[1732839192644,3.48765,3572.8,3572.5,0.27986]
[1732839192844,3.2078,3572.8,3572.1,3.8859]
[1732839193448,3.48765,3572.8,3572.5,0.27986]
[1732839193649,0.27986,3572.7,3572.1,3.8859]
[1732839194042,3.2078,3572.8,3572.1,3.8859]
[1732839194242,3.2078,3572.8,3572.1,4.58564]
[1732839194443,3.2078,3572.8,3572.7,0.27985]
[1732839197345,3.2078,3573.2,3572.5,3.2078]
[1732839197545,3.2078,3573.2,3573.1,0.27982]
[1732839197753,3.2078,3573.2,3573.1,0.51350469]
[1732839197950,0.27979,3573.6,3573.5,0.27978]
[1732839198248,3.2078,3573.8,3573.7,0.27978]
[1732839198648,3.48757,3573.8,3573.7,0.27978]
[1732839199049,3.2078,3573.8,3573.7,0.27978]
[1732839199248,3.48757,3573.8,3573.7,0.27978]
[1732839200258,3.2078,3573.8,3573.7,0.27978]
[1732839200957,0.27974,3574.2,3573.7,0.27978]
[1732839201159,0.27974,3574.2,3574.1,0.27974]
[1732839201358,0.27974,3574.2,3574.1,0.39870856]
[1732839202446,0.55973987,3574.2,3574.1,0.39870856]
[1732839203860,0.55973987,3574.2,3573.9,0.27976]
[1732839204161,0.55973987,3574.2,3574.0,0.39893882]
[1732839204349,0.55973987,3574.2,3574.1,0.39893882]
[1732839205958,2.44241773,3574.2,3574.1,0.39893882]
[1732839206556,0.27999987,3574.2,3574.1,0.39893882]
[1732839207562,0.27999987,3574.2,3574.1,0.39889173]
[1732839207859,0.27999987,3574.2,3574.1,0.67863173]
[1732839208252,5.37021786,3574.4,3574.1,0.39889173]
[1732839208554,3.24362679,3574.6,3574.4,0.27972]
[1732839208555,2.16241786,3574.5,3574.4,0.27972]
[1732839208951,2.16241786,3574.5,3574.4,0.67861173]
[1732839209962,2.44212786,3574.5,3574.4,0.39889173]
[1732839210257,2.16241786,3574.5,3574.4,0.39889173]
[1732839210465,2.16241786,3574.5,3574.4,0.67861173]
[1732839210958,2.16241786,3574.5,3574.4,0.39889173]
[1732839211153,2.16241786,3574.5,3574.3,0.27972]
[1732839211361,2.16241786,3574.5,3574.4,0.39878658]
[1732839211854,2.16241786,3574.5,3574.4,0.67850658]
[1732839212153,2.16241786,3574.5,3574.4,0.39878658]
[1732839213058,2.44212786,3574.5,3574.4,0.39878658]
[1732839213254,2.16241786,3574.5,3574.4,0.39878658]
[1732839213660,3.52354438,3574.6,3574.4,0.39878658]
[1732839213858,3.80325438,3574.6,3574.5,0.15336852]
[1732839214858,6.32114438,3574.6,3573.8,2.86145423]
[1732839215060,6.32114438,3574.6,3573.9,0.52511649]
[1732839215061,0.27974,3574.2,3573.9,0.52511649]
[1732839215358,0.27974,3574.2,3574.0,0.24535649]
[1732839215655,0.27974,3574.2,3574.1,0.24535649]
[1732839216755,5.6582044,3574.3,3574.1,0.24535649]
[1732839216963,5.6582044,3574.3,3574.2,0.24535649]
[1732839218260,5.3784744,3574.3,3574.2,0.24535649]
[1732839218463,5.3784744,3574.3,3574.2,0.52509649]
[1732839218657,5.3784744,3574.3,3574.2,0.24535649]
[1732839219164,5.6582044,3574.3,3574.2,0.24535649]
[1732839220057,3.2078,3574.3,3574.2,0.52509649]
[1732839220654,3.2078,3574.3,3574.2,0.52511523]
[1732839222154,3.2078,3574.3,3574.2,1.01433274]
[1732839222361,0.27991759,3574.6,3574.5,0.27971]
[1732839222362,0.55962759,3574.6,3574.5,0.27971]
[1732839222564,0.55961759,3574.6,3574.5,0.84323076]
[1732839222862,0.55961759,3574.6,3574.5,0.56352076]
[1732839223164,0.55961759,3574.6,3574.5,0.84323076]
[1732839223367,0.27991759,3574.6,3574.5,0.84323076]
[1732839224062,0.55961759,3574.6,3574.5,0.84323076]
[1732839224862,0.27991759,3574.6,3574.5,0.84323076]
[1732839225356,0.55961759,3574.6,3574.5,0.73469101]
[1732839225562,0.55961759,3574.6,3574.5,1.01440101]
[1732839225755,0.27991759,3574.6,3574.5,0.84323076]
[1732839226155,0.55961759,3574.6,3574.5,0.56352076]
[1732839226362,0.27991759,3574.6,3574.5,1.01440101]
[1732839226666,0.27991759,3574.6,3574.5,0.84323076]
[1732839227060,0.27991759,3574.6,3574.5,1.17057955]
[1732839227361,0.27991759,3574.6,3574.5,0.99909855]
[1732839232158,0.27991759,3574.6,3574.5,0.52508523]
[1732839232469,0.27991759,3574.6,3574.5,0.9973091]
[1732839234269,0.27991759,3574.6,3574.5,0.85687446]
[1732839234465,0.27991759,3574.6,3574.5,0.6852812]
[1732839235170,0.27991759,3574.6,3574.5,1.00692735]
[1732839236173,0.27991759,3574.6,3574.5,1.01936832]
[1732839237464,2.44950713,3574.6,3574.5,1.01936832]
[1732839239670,3.53430191,3574.6,3574.5,1.01936832]
[1732839239863,3.4875,3574.7,3574.6,0.2797]
[1732839239864,6.46218432,3574.7,3574.6,0.2797]
[1732839240073,3.2078,3574.7,3574.6,2.32925832]
[1732839240467,6.46218432,3574.7,3574.6,2.32925832]
[1732839240861,4.33208432,3574.7,3574.6,9.21685832]
[1732839241169,3.25438432,3574.9,3574.6,8.93715832]
[1732839241371,0.27999986,3575.0,3574.7,3.81695832]
[1732839241372,2.17280642,3574.8,3574.7,3.81695832]
[1732839241570,3.25438432,3574.9,3574.7,8.24695832]
[1732839241771,2.17349705,3575.0,3574.8,0.73965832]
[1732839241966,2.17349705,3575.0,3574.9,1.01933832]
[1732839242266,2.17349705,3575.1,3575.0,0.27967]
[1732839242473,3.25438432,3575.1,3575.0,6.52952832]
[1732839242670,0.27967,3575.1,3575.0,6.52952832]
[1732839242868,3.25438432,3575.2,3575.0,6.24985832]
[1732839243172,3.53404432,3575.2,3575.1,1.01932832]
[1732839243374,3.53404432,3575.2,3575.1,5.42932832]
[1732839243568,4.33917909,3575.3,3575.1,5.14965832]
[1732839243772,4.33917909,3575.3,3575.1,4.41]
[1732839243967,4.33917909,3575.3,3575.2,1.01863785]
[1732839243968,4.61882909,3575.3,3575.2,1.01863785]
[1732839244169,4.33917909,3575.3,3575.2,4.97863785]
[1732839244370,10.90329889,3575.3,3575.2,0.41765399]
[1732839244568,0.69929,3574.6,3573.8,7.59415908]
[1732839244769,2.453956,3574.0,3573.8,1.3984]
[1732839244965,6.469094,3574.1,3573.8,1.3984]
[1732839244966,3.261294,3573.9,3573.8,1.3984]
[1732839245169,3.261294,3573.9,3573.8,1.67817]
[1732839245472,3.261294,3573.9,3573.8,1.3984]
[1732839245671,3.261294,3573.9,3573.8,1.67817]
[1732839246475,3.261294,3573.9,3573.8,1.3984]
[1732839246773,3.261294,3573.9,3573.8,1.67817]
[1732839246971,3.261294,3573.9,3573.8,1.3984]
[1732839247167,3.261294,3573.9,3573.8,1.67817]
[1732839247470,3.261294,3573.9,3573.8,1.3984]
[1732839248268,3.261294,3573.9,3573.0,6.57953863]
[1732839248469,2.17453251,3573.5,3573.3,1.3331]
[1732839248770,0.27981,3573.3,3573.1,3.2078]
[1732839248977,2.17425975,3573.2,3573.1,3.2078]
[1732839249372,2.45406975,3573.3,3573.1,3.2078]
[1732839249772,2.17425975,3573.3,3573.2,0.17137205]
[1732839250273,2.17425975,3573.3,3573.1,3.37917205]
[1732839250571,2.45406975,3573.3,3573.1,3.37917205]
[1732839251275,2.17425975,3573.3,3573.1,3.37917205]
[1732839251471,2.45406975,3573.3,3573.1,3.37917205]
[1732839251677,0.27981,3573.2,3573.1,0.17137205]
[1732839251978,0.27981,3573.2,3572.9,1.3396]
[1732839251979,0.27982,3573.2,3572.9,0.17137205]
[1732839252175,2.17275757,3573.0,3572.8,0.17137205]
[1732839252372,3.2078,3572.9,3572.6,1.53277205]
[1732839252571,3.2078,3572.9,3572.7,0.45122205]
[1732839252774,3.2078,3572.9,3572.6,1.53277205]
[1732839252975,5.38055757,3572.9,3572.6,2.18277205]
[1732839253273,3.2078,3572.9,3572.6,2.0114]
[1732839253477,5.38055757,3572.9,3572.6,2.29126]
[1732839253678,5.38055757,3572.9,3572.6,2.0114]
[1732839253875,5.66039757,3572.9,3572.6,2.0114]
[1732839254383,3.2078,3572.9,3572.6,2.29126]
[1732839254675,3.2078,3572.9,3572.7,0.24278961]
[1732839254880,3.2078,3572.9,3572.8,0.24278961]
[1732839255081,3.2078,3572.9,3572.8,4.00278961]
[1732839255877,3.48965301,3573.2,3573.1,0.27982]
[1732839255878,2.17275757,3573.2,3573.1,0.27982]
[1732839256076,3.2078,3573.3,3573.2,0.27981]